[Event "BL 2018-19"]
[Site "Berlin"]
[Date "2019.03.09"]
[Round "12"]
[White "Wagner, Dennis"]
[Black "Schmidek, Emil"]
[Result "*"]
[ECO "B56"]
[WhiteElo "2576"]
[BlackElo "2387"]
[Annotator "ChessBase"]
[PlyCount "129"]
[EventDate "2018.11.10"]
[EventType "team-tourn"]
[EventCountry "GER"]
[SourceTitle "playchess.com"]
[Source "ChessBase"]
[SourceQuality "1"]
[WhiteTeam "Hockenheim"]
[BlackTeam "SF Berlin"]
[TimeControl "40/6000+30:3000+30"]

1. e4 {[%emt 0:11:41]} c5 {[%emt 0:09:34]} 2. Nf3 {[%emt 0:00:05]} d6 {[%emt 0:00:08]} 3. d4 {[%emt 0:00:19]} cxd4 {[%emt 0:00:06]} 4. Nxd4 {[%emt 0:00:02]} Nf6 {[%emt 0:00:07]} 5. Nc3 {[%emt 0:00:13]} Bd7 {[%emt 0:00:09]} 6. Bc4 {[%emt 0:06:30]} e6 {[%emt 0:00:44]} 7. Bb3 {[%emt 0:00:53]} Na6 {[%emt 0:18:59]} 8. g4 {[%emt 0:07:35]} Nc5 {[%emt 0:00:58]} 9. Qe2 {[%emt 0:03:34]} Bc6 {[%emt 0:13:03]} 10. f3 {[%emt 0:06:55]} Be7 {[%emt 0:11:21]} 11. Be3 {[%emt 0:06:17]} Nfd7 {[%emt 0:14:36]} 12. O-O-O {[%emt 0:05:48]} Nxb3+ {[%emt 0:12:33]} 13. axb3 {[%emt 0:04:28]} Qa5 {[%emt 0:05:46]} 14. Kb1 {[%emt 0:02:40]} a6 {[%emt 0:10:34]} 15. h4 {[%emt 0:06:24]} h5 {[%emt 0:02:32]} 16. g5 {[%emt 0:01:55]} g6 {[%emt 0:00:16]} 17. f4 {[%emt 0:03:28]} Nc5 {[%emt 0:01:27]} 18. Rhe1 {[%emt 0:10:04]} O-O {[%emt 0:04:02]} 19. f5 {[%emt 0:02:11]} Rfe8 {[%emt 0:01:31]} 20. Bd2 {[%emt 0:09:50]} exf5 {[%emt 0:00:26]} 21. Qf2 {[%emt 0:04:55]} Qc7 {[%emt 0:00:27]} 22. exf5 {[%emt 0:01:52]} Bf8 {[%emt 0:00:02]} 23. Nxc6 {[%emt 0:02:57]} bxc6 {[%emt 0:00:05]} 24. b4 {[%emt 0:02:01]} Nd7 {[%emt 0:00:12]} 25. Ne4 {[%emt 0:00:53]} d5 {[%emt 0:00:56]} 26. Nf6+ {[%emt 0:01:57]} Nxf6 {[%emt 0:00:03]} 27. gxf6 {[%emt 0:00:05]} Kh7 {[%emt 0:00:30]} 28. Qg2 {[%emt 0:03:22]} Qd7 {[%emt 0:00:34]} 29. fxg6+ {[%emt 0:02:44]} fxg6 {[%emt 0:00:02]} 30. Rg1 {[%emt 0:00:20]} Qf7 {[%emt 0:00:09]} 31. Bc3 {[%emt 0:01:22]} Re4 {[%emt 0:00:19]} 32. Rde1 {[%emt 0:00:59]} Rae8 {[%emt 0:00:19]} 33. Qf2 {[%emt 0:01:18]} R8e6 {[%emt 0:00:49]} 34. Rxe4 {[%emt 0:00:32]} dxe4 {[%emt 0:01:33]} 35. Qd4 {[%emt 0:00:38]} Bh6 {[%emt 0:00:40]} 36. Re1 {[%emt 0:00:21]} e3 {[%emt 0:00:22]} 37. Qd3 {[%emt 0:00:22]} Qb7 {[%emt 0:01:01]} 38. Qd8 {[%emt 0:00:50]} Qf7 {[%emt 0:00:17]} 39. Qd3 {[%emt 0:00:16]} Qb7 {[%emt 0:01:15]} 40. Rg1 {[%emt 0:00:23]} Qf7 {[%emt 0:00:03]} 41. Rxg6 {[%emt 0:25:48]} Qxg6 {[%emt 0:24:01]} 42. Qd7+ {[%emt 0:01:12]} Kg8 {[%emt 0:00:50]} 43. Qxe6+ {[%emt 0:00:05]} Qf7 {[%emt 0:00:10]} 44. Qxc6 {[%emt 0:00:24]} Bf8 {[%emt 0:09:34]} 45. Qxa6 {[%emt 0:04:12]} Qd5 {[%emt 0:00:36]} 46. Qa2 {[%emt 0:07:51]} Qxa2+ {[%emt 0:03:08]} 47. Kxa2 {[%emt 0:00:02]} Bd6 {[%emt 0:00:11]} 48. Be1 {[%emt 0:00:12]} Kf7 {[%emt 0:01:29]} 49. Kb3 {[%emt 0:03:38]} Kxf6 {[%emt 0:00:14]} 50. Kc4 {[%emt 0:01:27]} Kf5 {[%emt 0:00:25]} 51. Kd3 {[%emt 0:00:21]} Kf4 {[%emt 0:01:04]} 52. c4 {[%emt 0:01:13]} Kf3 {[%emt 0:01:54]} 53. c5 {[%emt 0:00:27]} Be7 {[%emt 0:02:56]} 54. b3 {[%emt 0:02:54]} e2 {[%emt 0:03:38]} 55. c6 {[%emt 0:00:52]} Bd6 {[%emt 0:00:19]} 56. b5 {[%emt 0:00:27]} Bc7 {[%emt 0:00:14]} 57. Kd4 {[%emt 0:02:48]} Bg3 {[%emt 0:06:34]} 58. Bb4 {[%emt 0:01:19]} Bd6 {[%emt 0:00:46]} 59. Bc3 {[%emt 0:00:43]} Bc7 {[%emt 0:00:27]} 60. Kd5 {[%emt 0:01:02]} Kf2 {[%emt 0:01:22]} 61. Kc5 {[%emt 0:02:24]} Be5 {[%emt 0:00:56]} 62. Ba5 {[%emt 0:00:04]} Ke3 {[%emt 0:00:34]} 63. b6 {[%emt 0:00:21]} Bd4+ {[%emt 0:00:43]} 64. Kb5 {[%emt 0:00:22]} Kd3 {[%emt 0:00:40]} 65. c7 {[%emt 0:00:11]} *

[Event "BL 2018-19"]
[Site "Berlin"]
[Date "2019.03.09"]
[Round "12"]
[White "Abel, Dennes"]
[Black "Ponomariov, Ruslan"]
[Result "0-1"]
[ECO "A31"]
[WhiteElo "2465"]
[BlackElo "2665"]
[Annotator "ChessBase"]
[PlyCount "40"]
[EventDate "2018.11.10"]
[EventType "team-tourn"]
[EventCountry "GER"]
[SourceTitle "playchess.com"]
[Source "ChessBase"]
[SourceQuality "1"]
[WhiteTeam "SF Berlin"]
[BlackTeam "Hockenheim"]
[TimeControl "40/6000+30:3000+30"]

1. d4 {[%emt 0:00:00]} Nf6 {[%emt 0:00:00]} 2. c4 {[%emt 0:00:00]} c5 {[%emt 0:00:01]} 3. Nf3 {[%emt 0:00:26]} cxd4 {[%emt 0:00:45]} 4. Nxd4 {[%emt 0:00:12]} e5 {[%emt 0:00:18]} 5. Nb5 {[%emt 0:00:33]} d5 {[%emt 0:00:14]} 6. cxd5 {[%emt 0:00:08]} Bc5 {[%emt 0:00:10]} 7. N5c3 {[%emt 0:04:06]} O-O {[%emt 0:00:43]} 8. g3 {[%emt 0:01:51]} Ng4 {[%emt 0:03:22]} 9. e3 {[%emt 0:03:45]} f5 {[%emt 0:00:51]} 10. Be2 {[%emt 0:12:50]} Nh6 {[%emt 0:06:54]} 11. Nd2 {[%emt 0:06:20]} Nd7 {[%emt 0:03:34]} 12. Nb3 {[%emt 0:05:21]} Bd6 {[%emt 0:05:38]} 13. e4 {[%emt 0:11:19]} f4 {[%emt 0:04:42]} 14. f3 {[%emt 0:03:30]} a6 {[%emt 0:05:08]} 15. Qd3 {[%emt 0:03:59]} Nf6 {[%emt 0:04:25]} 16. g4 {[%emt 0:14:13]} Nf7 {[%emt 0:12:07]} 17. Bd2 {[%emt 0:04:45]} Bd7 {[%emt 0:03:13]} 18. O-O-O {[%emt 0:03:02]} b5 {[%emt 0:01:20]} 19. a3 {[%emt 0:02:32]} Qb6 {[%emt 0:03:54]} 20. Na2 {[%emt 0:05:16]} a5 {[%emt 0:03:11]} 0-1

[Event "BL 2018-19"]
[Site "Berlin"]
[Date "2019.03.09"]
[Round "12"]
[White "Maiwald, Jens-Uwe"]
[Black "Libiszewski, Fabien"]
[Result "0-1"]
[ECO "B90"]
[WhiteElo "2443"]
[BlackElo "2481"]
[Annotator "ChessBase"]
[PlyCount "84"]
[EventDate "2018.11.10"]
[EventType "team-tourn"]
[EventCountry "GER"]
[SourceTitle "playchess.com"]
[Source "ChessBase"]
[SourceQuality "1"]
[WhiteTeam "Dresden"]
[BlackTeam "Viernheim"]
[TimeControl "40/6000+30:3000+30"]

1. e4 {[%emt 0:09:34]} c5 {[%emt 0:14:34]} 2. Nf3 {[%emt 0:00:10]} d6 {[%emt 0:00:03]} 3. d4 {[%emt 0:00:06]} cxd4 {[%emt 0:00:04]} 4. Nxd4 {[%emt 0:00:08]} Nf6 {[%emt 0:00:03]} 5. Nc3 {[%emt 0:00:08]} a6 {[%emt 0:00:03]} 6. f3 {[%emt 0:00:12]} e6 {[%emt 0:00:35]} 7. g4 {[%emt 0:00:49]} Nc6 {[%emt 0:04:30]} 8. g5 {[%emt 0:05:04]} Nd7 {[%emt 0:00:38]} 9. h4 {[%emt 0:07:33]} Qb6 {[%emt 0:01:18]} 10. Nb3 {[%emt 0:01:57]} Be7 {[%emt 0:01:01]} 11. Qe2 {[%emt 0:01:19]} Qc7 {[%emt 0:00:25]} 12. Be3 {[%emt 0:00:06]} b5 {[%emt 0:00:07]} 13. O-O-O {[%emt 0:15:25]} Bb7 {[%emt 0:02:12]} 14. Kb1 {[%emt 0:24:01]} Rc8 {[%emt 0:01:18]} 15. Rg1 {[%emt 0:07:47]} Nce5 {[%emt 0:01:49]} 16. Qf2 {[%emt 0:04:59]} b4 {[%emt 0:12:34]} 17. Bd4 {[%emt 0:02:59]} bxc3 {[%emt 0:01:06]} 18. Bxc3 {[%emt 0:00:02]} Nc5 {[%emt 0:02:17]} 19. Nxc5 {[%emt 0:07:11]} Qxc5 {[%emt 0:00:26]} 20. Bd4 {[%emt 0:00:02]} Qc7 {[%emt 0:00:30]} 21. Rc1 {[%emt 0:03:57]} O-O {[%emt 0:02:47]} 22. f4 {[%emt 0:04:27]} Nd7 {[%emt 0:02:15]} 23. f5 {[%emt 0:08:50]} e5 {[%emt 0:00:06]} 24. Be3 {[%emt 0:00:56]} Bxe4 {[%emt 0:00:34]} 25. f6 {[%emt 0:00:50]} Rb8 {[%emt 0:00:54]} 26. Qd2 {[%emt 0:02:41]} Bd8 {[%emt 0:02:23]} 27. Bd3 {[%emt 0:01:05]} Qb7 {[%emt 0:01:37]} 28. b3 {[%emt 0:00:22]} Bb6 {[%emt 0:01:34]} 29. fxg7 {[%emt 0:01:14]} Rfc8 {[%emt 0:01:19]} 30. h5 {[%emt 0:00:32]} Bxe3 {[%emt 0:01:47]} 31. Qxe3 {[%emt 0:00:02]} Nc5 {[%emt 0:00:33]} 32. g6 {[%emt 0:00:58]} Bxd3 {[%emt 0:00:18]} 33. cxd3 {[%emt 0:00:31]} Nxb3 {[%emt 0:02:43]} 34. Rxc8+ {[%emt 0:00:03]} Rxc8 {[%emt 0:00:08]} 35. gxh7+ {[%emt 0:00:50]} Kxh7 {[%emt 0:00:04]} 36. Qe4+ {[%emt 0:00:39]} Qxe4 {[%emt 0:00:08]} 37. dxe4 {[%emt 0:00:03]} Nd2+ {[%emt 0:00:07]} 38. Kb2 {[%emt 0:00:15]} Nxe4 {[%emt 0:00:07]} 39. h6 {[%emt 0:01:01]} Rg8 {[%emt 0:00:15]} 40. Rh1 {[%emt 0:00:17]} Ng3 {[%emt 0:00:07]} 41. Rh3 {[%emt 0:25:15]} Nf5 {[%emt 0:20:08]} 42. Ra3 {[%emt 0:00:01]} Ra8 {[%emt 0:00:26]} 0-1

[Event "BL 2018-19"]
[Site "Berlin"]
[Date "2019.03.09"]
[Round "12"]
[White "Loxine, Jakov"]
[Black "Markert, Malte"]
[Result "*"]
[ECO "B13"]
[WhiteElo "2393"]
[BlackElo "2330"]
[Annotator "NA"]
[PlyCount "149"]
[EventDate "2018.11.10"]
[EventType "team-tourn"]
[EventCountry "GER"]
[SourceTitle "playchess.com"]
[Source "ChessBase"]
[SourceQuality "1"]
[WhiteTeam "Dresden"]
[BlackTeam "Viernheim"]
[TimeControl "40/6000+30:3000+30"]

1. e4 {[%emt 0:09:35]} c6 {[%emt 0:09:42]} 2. d4 {[%emt 0:00:16]} d5 {[%emt 0:00:05]} 3. exd5 {[%emt 0:00:09]} cxd5 {[%emt 0:00:10]} 4. Bd3 {[%emt 0:00:03]} Nc6 {[%emt 0:00:07]} 5. c3 {[%emt 0:00:03]} Qc7 {[%emt 0:00:04]} 6. Ne2 {[%emt 0:00:17]} Bg4 {[%emt 0:00:05]} 7. O-O {[%emt 0:00:08]} e6 {[%emt 0:00:08]} 8. Qe1 {[%emt 0:00:22]} Nf6 {[%emt 0:00:23]} 9. Bg5 {[%emt 0:00:17]} Bxe2 {[%emt 0:00:11]} 10. Qxe2 {[%emt 0:00:16]} Bd6 {[%emt 0:00:06]} 11. g3 {[%emt 0:01:44]} h6 {[%emt 0:00:10]} 12. Be3 {[%emt 0:00:59]} h5 {[%emt 0:00:06]} 13. Bg5 {[%emt 0:10:04]} O-O-O {[%emt 0:05:45]} 14. Nd2 {[%emt 0:04:44]} h4 {[%emt 0:04:33]} 15. Kg2 {[%emt 0:04:22]} Rdg8 {[%emt 0:23:37]} 16. Nf3 {[%emt 0:04:38]} Nh5 {[%emt 0:10:20]} 17. Nxh4 {[%emt 0:07:16]} Bf4 {[%emt 0:21:22]} 18. Qg4 {[%emt 0:10:34]} Bxg5 {[%emt 0:17:39]} 19. Qxg5 {[%emt 0:00:06]} Rh6 {[%emt 0:01:06]} 20. Rae1 {[%emt 0:05:40]} Rgh8 {[%emt 0:02:18]} 21. Nf3 {[%emt 0:03:42]} f6 {[%emt 0:02:18]} 22. Qd2 {[%emt 0:03:51]} g5 {[%emt 0:03:20]} 23. Rh1 {[%emt 0:09:07]} Qd7 {[%emt 0:01:27]} 24. h4 {[%emt 0:05:18]} g4 {[%emt 0:00:19]} 25. Nh2 {[%emt 0:01:38]} f5 {[%emt 0:00:56]} 26. Qg5 {[%emt 0:00:31]} Nd8 {[%emt 0:01:15]} 27. Re2 {[%emt 0:03:36]} Nf7 {[%emt 0:02:04]} 28. Qc1 {[%emt 0:01:31]} Rg8 {[%emt 0:00:29]} 29. c4 {[%emt 0:07:37]} Kb8 {[%emt 0:00:01]} 30. Rhe1 {[%emt 0:00:50]} f4 {[%emt 0:00:38]} 31. Rc2 {[%emt 0:00:22]} fxg3 {[%emt 0:03:01]} 32. fxg3 {[%emt 0:00:08]} Nxg3 {[%emt 0:00:22]} 33. Qf4+ {[%emt 0:02:11]} Nd6 {[%emt 0:01:28]} 34. Qxg3 {[%emt 0:00:55]} dxc4 {[%emt 0:00:10]} 35. Rxc4 {[%emt 0:01:19]} Ka8 {[%emt 0:01:04]} 36. Rc5 {[%emt 0:00:04]} Nf5 {[%emt 0:00:26]} 37. Bxf5 {[%emt 0:02:01]} exf5 {[%emt 0:00:02]} 38. Rce5 {[%emt 0:02:06]} a6 {[%emt 0:00:22]} 39. d5 {[%emt 0:01:51]} Rf8 {[%emt 0:01:01]} 40. Rf1 {[%emt 0:03:34]} Rb6 {[%emt 0:00:25]} 41. b3 {[%emt 0:56:08]} Rb5 {[%emt 0:24:17]} 42. Nxg4 {[%emt 0:00:00]} Rxd5 {[%emt 0:02:03]} 43. Rxd5 {[%emt 0:00:00]} Qxd5+ {[%emt 0:00:02]} 44. Kh2 {[%emt 0:00:00]} Re8 {[%emt 0:14:20]} 45. Ne3 {[%emt 0:00:00]} Qd2+ {[%emt 0:00:40]} 46. Ng2 {[%emt 0:00:00]} Qxa2 {[%emt 0:00:12]} 47. Rxf5 {[%emt 0:00:00]} Qc2 {[%emt 0:02:33]} 48. Rf7 {[%emt 0:00:00]} Rh8 {[%emt 0:00:53]} 49. Rg7 {[%emt 0:00:00]} Ka7 {[%emt 0:01:55]} 50. Qe3+ {[%emt 0:00:00]} Ka8 {[%emt 0:00:18]} 51. Qg3 {[%emt 0:00:00]} Ka7 {[%emt 0:00:04]} 52. Re7 {[%emt 0:00:00]} Qc6 {[%emt 0:02:11]} 53. Qe3+ {[%emt 0:00:00]} Ka8 {[%emt 0:00:51]} 54. Qe4 {[%emt 0:00:00]} Qc8 {[%emt 0:01:22]} 55. Qd5 {[%emt 0:00:00]} Rd8 {[%emt 0:01:22]} 56. Qe4 {[%emt 0:00:00]} Rh8 {[%emt 0:00:57]} 57. Ne3 {[%emt 0:00:00]} Qb8+ {[%emt 0:00:09]} 58. Kh3 {[%emt 0:00:00]} Qc8+ {[%emt 0:01:33]} 59. Qe6 {[%emt 0:00:13]} Qf8 {[%emt 0:00:44]} 60. Nf5 {[%emt 0:00:27]} Qd8 {[%emt 0:02:14]} 61. Nd6 {[%emt 0:01:03]} Qa5 {[%emt 0:01:07]} 62. Qe5 {[%emt 0:02:43]} Qxe5 {[%emt 0:00:23]} 63. Rxe5 {[%emt 0:00:03]} Rh6 {[%emt 0:00:08]} 64. Nc4 {[%emt 0:01:11]} Kb8 {[%emt 0:01:24]} 65. h5 {[%emt 0:00:09]} b5 {[%emt 0:00:17]} 66. Na5 {[%emt 0:00:11]} Kc7 {[%emt 0:00:05]} 67. Kg4 {[%emt 0:00:33]} Rd6 {[%emt 0:00:29]} 68. Re4 {[%emt 0:00:32]} Rd1 {[%emt 0:01:12]} 69. h6 {[%emt 0:00:16]} Kd6 {[%emt 0:00:48]} 70. Kg5 {[%emt 0:00:09]} Rh1 {[%emt 0:00:14]} 71. Rh4 {[%emt 0:00:25]} Rg1+ {[%emt 0:00:04]} 72. Rg4 {[%emt 0:00:35]} Rh1 {[%emt 0:01:03]} 73. Kg6 {[%emt 0:00:13]} Kc5 {[%emt 0:00:22]} 74. b4+ {[%emt 0:00:06]} Kb6 {[%emt 0:00:09]} 75. h7 {[%emt 0:00:11]} *

[Event "BL 2018-19"]
[Site "Berlin"]
[Date "2019.03.09"]
[Round "12"]
[White "Florstedt, Johannes"]
[Black "Buhmann, Rainer"]
[Result "1-0"]
[ECO "B90"]
[WhiteElo "2337"]
[BlackElo "2574"]
[Annotator "RC"]
[PlyCount "42"]
[EventDate "2018.11.10"]
[EventType "team-tourn"]
[EventCountry "GER"]
[SourceTitle "playchess.com"]
[Source "ChessBase"]
[SourceQuality "1"]
[WhiteTeam "SF Berlin"]
[BlackTeam "Hockenheim"]
[TimeControl "40/6000+30:3000+30"]

1. e4 {[%emt 0:00:00]} c5 {[%emt 0:00:00]} 2. Nf3 {[%emt 0:00:00]} d6 {[%emt 0:00:00]} 3. d4 {[%emt 0:00:34]} cxd4 {[%emt 0:00:00]} 4. Nxd4 {[%emt 0:00:04]} Nf6 {[%emt 0:00:04]} 5. Nc3 {[%emt 0:00:05]} a6 {[%emt 0:00:06]} 6. Be3 {[%emt 0:03:46]} Ng4 {[%emt 0:01:07]} 7. Bg5 {[%emt 0:02:01]} h6 {[%emt 0:01:36]} 8. Bc1 {[%emt 0:00:28]} Nf6 {[%emt 0:02:29]} 9. Bc4 {[%emt 0:00:52]} e6 {[%emt 0:03:31]} 10. Bb3 {[%emt 0:00:32]} Nc6 {[%emt 0:04:18]} 11. Nxc6 {[%emt 0:04:08]} bxc6 {[%emt 0:00:43]} 12. Qf3 {[%emt 0:00:48]} d5 {[%emt 0:07:49]} 13. O-O {[%emt 0:08:53]} Be7 {[%emt 0:09:34]} 14. Ba4 {[%emt 0:13:19]} Bd7 {[%emt 0:04:24]} 15. e5 {[%emt 0:05:22]} Nh7 {[%emt 0:06:25]} 16. Qg4 {[%emt 0:00:55]} Nf8 {[%emt 0:01:56]} 17. Ne2 {[%emt 0:19:10]} h5 {[%emt 0:13:34]} 18. Qxg7 {[%emt 0:05:01]} Ng6 {[%emt 0:00:32]} 19. Nf4 {[%emt 0:14:48]} Bf8 {[%emt 0:01:49]} 20. Qf6 {[%emt 0:00:24]} Be7 {[%emt 0:00:19]} 21. Qg7 {[%emt 0:00:25]} Bf8 {[%emt 0:00:10]} 1-0

[Event "BL 2018-19"]
[Site "Berlin"]
[Date "2019.03.09"]
[Round "12"]
[White "Heinemann, Josefine"]
[Black "Moehn, Hans"]
[Result "*"]
[ECO "C42"]
[WhiteElo "2329"]
[BlackElo "2371"]
[Annotator "NA"]
[PlyCount "74"]
[EventDate "2018.11.10"]
[EventType "team-tourn"]
[EventCountry "GER"]
[SourceTitle "playchess.com"]
[Source "ChessBase"]
[SourceQuality "1"]
[WhiteTeam "Viernheim"]
[BlackTeam "Dresden"]
[TimeControl "40/6000+30:3000+30"]

1. e4 {[%emt 0:10:10]} e5 {[%emt 0:09:31]} 2. Nf3 {[%emt 0:02:08]} Nf6 {[%emt 0:00:05]} 3. Nxe5 {[%emt 0:04:42]} d6 {[%emt 0:00:08]} 4. Nf3 {[%emt 0:00:27]} Nxe4 {[%emt 0:00:05]} 5. Be2 {[%emt 0:12:44]} d5 {[%emt 0:02:44]} 6. O-O {[%emt 0:02:22]} Bd6 {[%emt 0:00:10]} 7. d3 {[%emt 0:09:22]} Nf6 {[%emt 0:02:51]} 8. Bg5 {[%emt 0:01:58]} O-O {[%emt 0:00:18]} 9. Nbd2 {[%emt 0:01:39]} c5 {[%emt 0:00:52]} 10. c4 {[%emt 0:02:29]} h6 {[%emt 0:04:52]} 11. Bh4 {[%emt 0:17:59]} g5 {[%emt 0:01:55]} 12. Bg3 {[%emt 0:04:17]} Bxg3 {[%emt 0:00:39]} 13. fxg3 {[%emt 0:09:53]} Nc6 {[%emt 0:03:59]} 14. Nb3 {[%emt 0:03:39]} Ng4 {[%emt 0:08:04]} 15. Qd2 {[%emt 0:05:07]} b6 {[%emt 0:02:06]} 16. cxd5 {[%emt 0:06:22]} Qxd5 {[%emt 0:01:22]} 17. h3 {[%emt 0:00:19]} Nge5 {[%emt 0:02:15]} 18. Nxg5 {[%emt 0:05:01]} Nd4 {[%emt 0:07:52]} 19. Bf3 {[%emt 0:06:35]} Nexf3+ {[%emt 0:11:02]} 20. Nxf3 {[%emt 0:00:01]} Nxb3 {[%emt 0:02:48]} 21. axb3 {[%emt 0:00:01]} Kh7 {[%emt 0:01:34]} 22. Nh4 {[%emt 0:01:53]} Be6 {[%emt 0:03:42]} 23. Ra4 {[%emt 0:00:42]} Qg5 {[%emt 0:03:03]} 24. Qf2 {[%emt 0:00:38]} Rg8 {[%emt 0:02:34]} 25. Nf5 {[%emt 0:01:12]} Rg6 {[%emt 0:03:36]} 26. g4 {[%emt 0:00:34]} Bxb3 {[%emt 0:01:02]} 27. Rf4 {[%emt 0:00:22]} Rf8 {[%emt 0:01:40]} 28. h4 {[%emt 0:00:26]} Qd8 {[%emt 0:01:05]} 29. Qd2 {[%emt 0:00:44]} Be6 {[%emt 0:01:47]} 30. h5 {[%emt 0:00:15]} Bxf5 {[%emt 0:03:36]} 31. hxg6+ {[%emt 0:00:34]} Bxg6 {[%emt 0:00:03]} 32. d4 {[%emt 0:00:27]} Qd5 {[%emt 0:00:42]} 33. Qe3 {[%emt 0:00:22]} cxd4 {[%emt 0:01:38]} 34. Rxd4 {[%emt 0:00:48]} Qc5 {[%emt 0:00:35]} 35. Rc1 {[%emt 0:00:05]} Qb5 {[%emt 0:00:14]} 36. b4 {[%emt 0:00:33]} Re8 {[%emt 0:00:17]} 37. Qf4 {[%emt 0:00:37]} a5 {[%emt 0:02:00]} *

[Event "BL 2018-19"]
[Site "Berlin"]
[Date "2019.03.23"]
[Round "12.13"]
[White "Pitl, Gregory"]
[Black "Miedema, David"]
[Result "0-1"]
[ECO "A06"]
[WhiteElo "2387"]
[BlackElo "2381"]
[Annotator "NA"]
[PlyCount "140"]
[EventDate "2018.11.10"]
[EventType "team-tourn"]
[EventCountry "GER"]
[SourceTitle "playchess.com"]
[Source "ChessBase"]
[SourceQuality "1"]
[WhiteTeam "Augsburg"]
[BlackTeam "Duesseldorf"]
[TimeControl "40/6000+30:3000+30"]

1. Nf3 {[%emt 0:00:00]} d5 {[%emt 0:20:49]} 2. g3 {[%emt 0:00:00]} Nf6 {[%emt 0:04:06]} 3. Bg2 {[%emt 0:00:07]} e6 {[%emt 0:00:11]} 4. O-O {[%emt 0:00:08]} c5 {[%emt 0:00:06]} 5. d4 {[%emt 0:00:53]} cxd4 {[%emt 0:00:26]} 6. Nxd4 {[%emt 0:00:06]} e5 {[%emt 0:00:05]} 7. Nb3 {[%emt 0:11:42]} Nc6 {[%emt 0:02:01] LiveBook: 85 Games} 8. Bg5 {[%emt 0:04:48]} Be6 {[%emt 0:00:06]} 9. e4 {[%emt 0:09:18] D02: 1 d4 d5 2 Nf3 sidelines, including 2...Nf6 3 g3 and 2...Nf6 3 Bf4} (9. Nc3 $14 d4 10. Ne4 Be7 11. Bxf6 gxf6 12. c3 Bd5 13. cxd4 exd4 14. e3 f5 15. Ned2 dxe3 16. fxe3 Bg5 17. e4 Bxb3 18. Nxb3 Qb6+ 19. Kh1 {1-0 (36) Andreikin,D (2743)-Dubov,D (2666) ICC INT 2016}) 9... d4 {[%emt 0:04:28]} 10. c3 {[%emt 0:03:54]} Qb6 {[%emt 0:03:12]} 11. N1d2 $146 {[%emt 0:09:23]} ({Predecessor:} 11. Bxf6 gxf6 12. N1d2 Rd8 13. Qf3 Be7 14. Rfd1 a5 15. cxd4 Nxd4 16. Nxd4 Rxd4 {0-1 (35) Salimova,N (1908)-Yildiz Kadioglu,B (2312) Plovdiv 2014}) 11... dxc3 {[%emt 0:07:32]} 12. bxc3 {[%emt 0:00:05]} Ng4 {[%emt 0:02:57]} 13. Nc4 {[%emt 0:16:05]} Qc7 {[%emt 0:06:06]} 14. Qe2 {[%emt 0:06:10]} Be7 {[%emt 0:01:59]} 15. Bxe7 {[%emt 0:06:14]} Nxe7 {[%emt 0:00:36]} 16. Ne3 {[%emt 0:00:10]} Nxe3 {[%emt 0:00:18]} 17. Qxe3 {[%emt 0:00:05]} O-O {[%emt 0:07:19]} 18. Nc5 {[%emt 0:09:41]} Bc4 {[%emt 0:05:16]} 19. Rfd1 {[%emt 0:01:20]} Rfd8 {[%emt 0:00:41]} 20. a4 {[%emt 0:07:26]} b6 {[%emt 0:00:21]} 21. Nd3 {[%emt 0:00:08]} Bxd3 {[%emt 0:00:49]} 22. Rxd3 {[%emt 0:00:08]} Rxd3 {[%emt 0:00:04]} 23. Qxd3 {[%emt 0:00:04]} Rd8 {[%emt 0:00:04]} 24. Qe3 {[%emt 0:00:49]} Nc6 {[%emt 0:03:53]} 25. Bf1 {[%emt 0:01:25]} Na5 {[%emt 0:00:44]} 26. Ra2 {[%emt 0:06:23]} Rd1 {[%emt 0:06:53]} 27. Kg2 {[%emt 0:01:29]} Qd8 {[%emt 0:04:10]} 28. Be2 {[%emt 0:01:19]} Rd6 {[%emt 0:00:06]} 29. Bb5 {[%emt 0:01:15]} g6 {[%emt 0:01:33]} 30. h4 {[%emt 0:00:29]} Kg7 {[%emt 0:02:45]} 31. Be2 {[%emt 0:01:03]} h5 {[%emt 0:01:20]} 32. Bb5 {[%emt 0:00:39]} Qa8 {[%emt 0:03:35]} 33. Be2 {[%emt 0:03:17]} Qc6 {[%emt 0:01:19]} 34. Bb5 {[%emt 0:02:10]} Qb7 {[%emt 0:00:08]} 35. Be2 {[%emt 0:00:05]} Qc8 {[%emt 0:06:01]} 36. Bb5 {[%emt 0:02:39]} Nb3 {[%emt 0:01:37]} 37. Ra3 {[%emt 0:02:17]} Na5 {[%emt 0:04:28]} 38. Ra2 {[%emt 0:00:08]} Qc7 {[%emt 0:00:35]} 39. Ra1 {[%emt 0:04:49]} Rd8 {[%emt 0:01:33]} 40. Ra2 {[%emt 0:00:42]} Nb7 {[%emt 0:06:20]} 41. Rd2 {[%emt 0:06:28]} Rxd2 {[%emt 0:03:06]} 42. Qxd2 {[%emt 0:00:11]} Nc5 {[%emt 0:00:45]} 43. Qd5 {[%emt 0:01:23]} a6 {[%emt 0:15:39]} 44. Bc6 {[%emt 0:02:59]} Qe7 {[%emt 0:00:24]} 45. Qc4 {[%emt 0:01:45]} a5 {[%emt 0:00:30]} 46. Qb5 {[%emt 0:04:46]} Qd6 {[%emt 0:03:20]} 47. Bd5 {[%emt 0:00:27]} Kf8 {[%emt 0:04:03]} 48. Kf3 {[%emt 0:04:37]} f5 {[%emt 0:03:24]} 49. Ke3 {[%emt 0:01:35]} f4+ {[%emt 0:05:43]} 50. Ke2 {[%emt 0:04:17]} fxg3 {[%emt 0:02:31]} 51. fxg3 {[%emt 0:00:08]} Ke7 {[%emt 0:02:02]} 52. Bc6 {[%emt 0:03:25]} Qc7 {[%emt 0:00:04]} 53. Bd5 {[%emt 0:01:36]} Nd7 {[%emt 0:00:39]} 54. Kd3 {[%emt 0:02:03]} Qc5 {[%emt 0:01:50]} 55. Bc6 {[%emt 0:05:10]} Qxb5+ {[%emt 0:00:38]} 56. axb5 {[%emt 0:01:25]} Nf6 {[%emt 0:02:12]} 57. Kc4 {[%emt 0:01:15]} Ng4 {[%emt 0:01:08]} 58. Kd3 {[%emt 0:02:22]} Nf6 {[%emt 0:02:00]} 59. Kc4 $1 {[%emt 0:00:40]} Kd6 {[%emt 0:00:04]} 60. Bb7 {[%emt 0:00:54]} Ng4 {[%emt 0:01:10]} 61. Bc6 {[%emt 0:00:14]} Nf2 {[%emt 0:02:17]} 62. Bd5 {[%emt 0:00:09]} Ke7 {[%emt 0:00:29]} 63. Bc6 {[%emt 0:00:26]} Nh1 {[%emt 0:01:14]} 64. Kd5 {[%emt 0:00:05]} Nxg3 {[%emt 0:00:07]} 65. Kxe5 {[%emt 0:00:04]} Ne2 {[%emt 0:00:08]} 66. c4 {[%emt 0:01:13]} a4 {[%emt 0:01:40]} 67. c5 {[%emt 0:00:09]} a3 {[%emt 0:00:13]} 68. Bd5 {[%emt 0:00:47]} Nc3 $11 {[%emt 0:00:53]} (68... bxc5 $19 69. b6 Kd7) 69. cxb6 {[%emt 0:00:22]} Nxd5 {[%emt 0:01:41]} 70. b7 {[%emt 0:00:05]} Nb6 {[%emt 0:00:24]} 0-1